fUSD/lending_fUSD_20251217
["ID","MTS","AMOUNT","RATE_DAILY","PERIOD"]
[398908665,1765986652002,-155.728382,0.00028,7]
[398908666,1765986652012,-151.0,0.00028,7]
[398908667,1765986652023,-151.0,0.00028,7]
[398908668,1765986652033,-151.0,0.00028,7]
[398908669,1765986652043,-163.279113,0.00028,7]
[398908670,1765986652054,-151.0,0.00028,7]
[398908671,1765986652064,-151.0,0.00028,7]
[398908672,1765986652074,-161.60114,0.00028,7]
[398908673,1765986652084,-431.380626,0.00028,7]
[398908674,1765986652094,-151.0,0.00028,7]
[398908675,1765986652104,-431.380626,0.00028,7]
[398908676,1765986652114,-151.0,0.00028,7]
[398908677,1765986652126,-431.380626,0.00028,7]
[398908678,1765986652136,-151.0,0.00028,7]
[398908679,1765986652146,-431.380626,0.00028,7]
[398908680,1765986652160,-151.0,0.00028,7]
[398908681,1765986652170,-195.955722,0.00028,7]
[398908682,1765986652180,-151.0,0.00028,7]
[398908683,1765986652191,-195.955722,0.00028,7]
[398908684,1765986652201,-151.0,0.00028,7]
[398908685,1765986652211,-151.0,0.00028,7]
[398908686,1765986652223,-151.0,0.00028,7]
[398908687,1765986652233,-172.069956,0.00028,7]
[398908688,1765986652244,-151.0,0.00028,7]
[398908689,1765986652255,-195.955722,0.00028,7]
[398908690,1765986652266,-151.0,0.00028,7]
[398908691,1765986652276,-172.069956,0.00028,7]
[398908692,1765986652286,-195.955722,0.00028,7]
[398908693,1765986652296,-151.0,0.00028,7]
[398908694,1765986652306,-151.0,0.00028,7]
[398908695,1765986652316,-151.0,0.00028,7]
[398908696,1765986652327,-172.069956,0.00028,7]
[398908697,1765986652337,-646.700271,0.00028,7]
[398908698,1765986652347,-151.0,0.00028,7]
[398908699,1765986652357,-151.0,0.00028,7]
[398908700,1765986652367,-244.913425,0.00028,7]
[398908701,1765986652377,-172.069956,0.00028,7]
[398908702,1765986652387,-646.700271,0.00028,7]
[398908703,1765986652400,-356.905953,0.00028,7]
[398908704,1765986652412,-151.0,0.00028,7]
[398908705,1765986652422,-646.700271,0.00028,7]
[398908706,1765986652432,-151.0,0.00028,7]
[398908707,1765986652443,-356.905953,0.00028,7]
[398908708,1765986652453,-151.0,0.00028,7]
[398908709,1765986652463,-151.0,0.00028,7]
[398908710,1765986652473,-646.700271,0.00028,7]
[398908711,1765986652483,-356.905953,0.00028,7]
[398908712,1765986652493,-151.0,0.00028,7]
[398908713,1765986652503,-151.0,0.00028,7]
[398908714,1765986652514,-356.905953,0.00028,7]
[398908715,1765986652524,-151.0,0.00028,7]
[398908716,1765986652536,-151.0,0.00028,7]
[398908717,1765986652546,-151.0,0.00028,7]
[398908718,1765986652556,-151.0,0.00028,7]
[398908719,1765986652566,-151.0,0.00028,7]
[398908720,1765986652576,-151.0,0.00028,7]
[398908721,1765986652586,-151.0,0.00028,7]
[398908722,1765986652596,-151.0,0.00028,7]
[398908723,1765986652606,-151.0,0.00028,7]
[398908724,1765986652616,-151.0,0.00028,7]
[398908725,1765986652627,-209.09934,0.00028,7]
[398908726,1765986652638,-151.0,0.00028,5]
[398908727,1765986652652,-151.0,0.00028,7]
[398908728,1765986652976,-153.558012,0.00028,7]
[398908729,1765986652986,-151.0,0.00028,7]
[398908730,1765986652996,-151.0,0.00028,7]
[398908731,1765986653006,-151.0,0.00028,7]
[398908732,1765986653016,-386.87667747,0.00028181,2]
[398908733,1765986653026,-217.0,0.00028229,2]
[398908734,1765986653036,-533.43570361,0.00028356,30]
[398908735,1765986653045,-350.0,0.00028493,5]
[398908736,1765986653056,-217.0,0.00028508,2]
[398908737,1765986653065,-500.0,0.0002853,14]
[398908738,1765986653075,-50460.61,0.000286,7]
[398908739,1765986653085,-151.0,0.000286,7]
[398908740,1765986653095,-151.362523,0.000286,7]
[398908741,1765986653105,-151.0,0.000286,7]
[398908742,1765986653116,-151.0,0.000286,7]
[398908743,1765986653125,-219.871423,0.000286,7]
[398908744,1765986653135,-151.0,0.000286,7]
[398908745,1765986653144,-151.0,0.000286,7]
[398908746,1765986653159,-331.50698,0.000286,7]
[398908747,1765986653169,-331.50698,0.000286,7]
[398908748,1765986653179,-331.50698,0.000286,7]
[398908749,1765986653189,-331.50698,0.000286,7]
[398908750,1765986653199,-151.0,0.000286,7]
[398908751,1765986653209,-151.0,0.000286,7]
[398908752,1765986653220,-156.439711,0.000286,7]
[398908753,1765986653232,-151.0,0.000286,7]
[398908754,1765986653249,-270.58313,0.000286,7]
[398908755,1765986653262,-151.0,0.000286,7]
[398908756,1765986653273,-151.0,0.000286,7]
[398908757,1765986653284,-151.0,0.000286,7]
[398908758,1765986653295,-151.0,0.000286,7]
[398908759,1765986653305,-151.0,0.000286,7]
[398908760,1765986653316,-165.201126,0.000286,7]
[398908761,1765986653326,-151.0,0.000286,7]
[398908762,1765986653337,-151.0,0.000286,7]
[398908763,1765986653357,-151.0,0.000286,7]
[398908764,1765986653370,-151.0,0.000286,7]
[398908765,1765986653382,-248.941495,0.000286,7]
[398908766,1765986653393,-151.0,0.000286,7]
[398908767,1765986653412,-151.0,0.000286,7]
[398908768,1765986653423,-500.0,0.00028617,2]
[398908769,1765986653434,-654.037458,0.000287,2]
[398908770,1765986653445,-400.07677771,0.00028767,30]
[398908771,1765986653461,-217.0,0.00028788,2]
[398908772,1765986653473,-730.28,0.00028799,2]
[398908773,1765986653483,-50460.62,0.000288,7]
[398908774,1765986653494,-151.0,0.000288,7]
[398908775,1765986653504,-151.0,0.000288,7]
[398908776,1765986653514,-151.0,0.000288,7]
[398908777,1765986653525,-151.0,0.000288,7]
[398908778,1765986653535,-151.0,0.000288,7]
[398908779,1765986653546,-151.0,0.000288,7]
[398908780,1765986653555,-151.0,0.000288,7]
[398908781,1765986653566,-151.0,0.000288,7]
[398908782,1765986653576,-295.939727,0.000288,7]
[398908783,1765986653586,-151.0,0.000288,7]
[398908784,1765986653596,-151.0,0.000288,7]
[398908785,1765986653605,-189.672307,0.000288,7]
[398908786,1765986653615,-151.0,0.000288,7]
[398908787,1765986653626,-151.0,0.000288,7]
[398908788,1765986653637,-151.0,0.000288,7]
[398908789,1765986653656,-151.0,0.000288,7]
[398908790,1765986653667,-151.0,0.000288,7]
[398908791,1765986653678,-298.254126,0.000288,7]
[398908792,1765986653689,-426.618691,0.000288,7]
[398908793,1765986653699,-226.357179,0.000288,7]
[398908794,1765986653710,-291.452296,0.000288,7]
[398908795,1765986653721,-291.452296,0.000288,7]
[398908796,1765986653731,-291.452296,0.000288,7]
[398908797,1765986653742,-291.452296,0.000288,7]
[398908798,1765986653753,-151.0,0.000288,7]
[398908799,1765986653763,-151.0,0.000288,7]
[398908800,1765986653773,-151.0,0.000288,7]
[398908801,1765986653783,-238.609181,0.000288,7]
[398908802,1765986653793,-238.609181,0.000288,7]
[398908803,1765986653803,-151.0,0.000288,7]
[398908804,1765986653812,-426.618691,0.000288,7]
[398908805,1765986653822,-238.609181,0.000288,7]
[398908806,1765986653832,-426.618691,0.000288,7]
[398908807,1765986653843,-238.609181,0.000288,7]
[398908808,1765986653853,-426.618691,0.000288,7]
[398908809,1765986653862,-1000.0,0.00028804,14]
[398908810,1765986653872,-1300.0,0.00028804,14]
[398908811,1765986653882,-1217.86,0.0002886,2]
[398908812,1765986653892,-1320.5,0.0002886,2]
[398908813,1765986653910,-230.65,0.0002886,2]
[398908814,1765986653920,-232.14020646,0.0002887,30]
[398908815,1765986653930,-1106.11,0.00028878,2]
[398908816,1765986653941,-14219.94442488,0.00029,3]
[398908817,1765986653951,-550.0,0.00029,2]
[398908818,1765986653960,-450.0,0.00029041,5]
[398908819,1765986653971,-266.7178518,0.00029452,30]
[398908820,1765986653980,-1730.37,0.00029492,30]
[398908821,1765986653990,-401.19111454,0.0002955,2]
[398908822,1765986654001,-550.0,0.00029589,5]
[398908823,1765986654010,-183.0,0.00029726,3]
[398908824,1765986654019,-1607.0,0.00029867,2]
[398908825,1765986654030,-612.0,0.00029867,2]
[398908826,1765986654039,-3453.0,0.00029867,2]
[398908827,1765986654049,-1325.0,0.00029867,2]
[398908828,1765986654058,-1261.0,0.00029867,2]
[398908829,1765986654069,-564.0,0.00029867,2]
[398908830,1765986654079,-911.0,0.00029867,2]
[398908831,1765986654088,-1197.0,0.00029867,2]
[398908832,1765986654098,-2427.0,0.00029867,2]
[398908833,1765986654108,-6471.48,0.00029867,2]
[398908834,1765986654118,-4799.0,0.00029867,2]
[398908835,1765986654129,-200.77285261,0.00029899,10]
[398908836,1765986654139,-688.94394477,0.00029899,10]
[398908837,1765986654154,-300.0,0.00029899,10]
[398908838,1765986654165,-666.0,0.00029899,10]
[398908839,1765986654175,-78358.09773166,0.000299,2]
[398908840,1765986654184,-235.60640891,0.0002999,2]
[398908841,1765986654195,-300.0,0.00029999,10]
[398908842,1765986654206,-730.28,0.00029999,2]
[398908843,1765986654216,-2999.62742999,0.0003,2]
[398908844,1765986654226,-19736.00588289,0.0003,2]
[398908845,1765986654236,-1804.58021962,0.0003,2]
[398908846,1765986654246,-438.12668207,0.0003,2]
[398908847,1765986654258,-161.86777164,0.0003,2]
[398908848,1765986654270,-160.0,0.0003,2]
[398908849,1765986654281,-544.94424233,0.0003,30]
[398908850,1765986654292,-4000.0,0.0003,8]
[398908851,1765986654301,-617.31536,0.0003,2]
[398908852,1765986654311,-278.09805183,0.0003,30]
[398908853,1765986654321,-158.0,0.0003,120]
[398908854,1765986654333,-5009.0,0.0003,7]
[398908855,1765986654343,-813.12947241,0.0003,5]
[398908856,1765986654354,-250.0,0.0003,30]
[398908857,1765986654365,-50000.0,0.0003,5]
[398908858,1765986654376,-257.73298809,0.0003,10]
[398908859,1765986654386,-483.43941908,0.0003,7]
[398908860,1765986654396,-50460.62,0.0003,7]
[398908861,1765986654412,-105796.42293857,0.0003,2]
[398908862,1765986654422,-161.415347,0.0003,7]
[398908863,1765986654432,-151.24169,0.0003,7]
[398908864,1765986654442,-151.0,0.0003,7]
[398908865,1765986654452,-151.0,0.0003,7]
[398908866,1765986654462,-151.0,0.0003,7]
[398908867,1765986654471,-174.54781,0.0003,7]
[398908868,1765986654481,-151.0,0.0003,7]
[398908869,1765986654493,-151.0,0.0003,7]
[398908870,1765986654506,-151.0,0.0003,7]
[398908871,1765986654519,-151.0,0.0003,7]
[398908872,1765986654528,-151.0,0.0003,7]
[398908873,1765986654539,-151.0,0.0003,7]
[398908874,1765986654549,-151.0,0.0003,7]
[398908875,1765986654559,-151.0,0.0003,7]
[398908876,1765986654568,-151.0,0.0003,7]
[398908877,1765986654578,-151.0,0.0003,7]
[398908878,1765986654587,-151.0,0.0003,7]
[398908879,1765986654596,-151.0,0.0003,7]
[398908880,1765986654607,-151.0,0.0003,7]
[398908881,1765986654617,-151.0,0.0003,7]
[398908882,1765986654628,-166.987172,0.0003,7]
[398908883,1765986654639,-151.0,0.0003,7]
[398908884,1765986654649,-161.243477,0.0003,7]
[398908885,1765986654662,-151.0,0.0003,7]
[398908886,1765986654671,-151.0,0.0003,7]
[398908887,1765986654682,-151.0,0.0003,2]
[398908888,1765986654691,-151.0,0.0003,2]
[398908889,1765986654702,-151.0,0.0003,7]
[398908890,1765986654712,-151.0,0.0003,7]
[398908891,1765986654722,-151.0,0.0003,7]
[398908892,1765986654732,-151.0,0.0003,7]
[398908893,1765986654742,-172.941604,0.0003,7]
[398908894,1765986654754,-151.0,0.0003,7]
[398908895,1765986654764,-151.0,0.0003,7]
[398908896,1765986654774,-151.0,0.0003,7]
[398908897,1765986654785,-269.24739,0.0003,7]
[398908898,1765986654795,-1975.536068,0.0003,7]
[398908899,1765986654806,-1975.536068,0.0003,7]
[398908900,1765986654816,-269.24739,0.0003,7]
[398908901,1765986654826,-1975.536068,0.0003,7]
[398908902,1765986654835,-269.24739,0.0003,7]
[398908903,1765986654845,-151.0,0.0003,7]
[398908904,1765986654855,-308.795552,0.0003,7]
[398908905,1765986654865,-1975.536068,0.0003,7]
[398908906,1765986654875,-269.24739,0.0003,7]
[398908907,1765986654885,-151.0,0.0003,7]
[398908908,1765986654895,-308.795552,0.0003,7]
[398908909,1765986654914,-151.0,0.0003,7]
[398908910,1765986654924,-308.795552,0.0003,7]
[398908911,1765986654934,-151.0,0.0003,7]
[398908912,1765986654945,-308.795552,0.0003,7]
[398908913,1765986654955,-151.0,0.0003,7]
[398908914,1765986654966,-151.0,0.0003,7]
[398908915,1765986654976,-151.0,0.0003,7]
[398908916,1765986654986,-151.0,0.0003,7]
[398908917,1765986654996,-151.0,0.0003,7]
[398908918,1765986655006,-152.73196,0.0003,7]
[398908919,1765986655015,-151.0,0.0003,7]
[398908920,1765986655025,-525.697294,0.0003,7]
[398908921,1765986655034,-151.0,0.0003,7]
[398908922,1765986655045,-151.0,0.0003,7]
[398908923,1765986655055,-525.697294,0.0003,7]
[398908924,1765986655064,-151.0,0.0003,7]
[398908925,1765986655076,-525.697294,0.0003,7]
[398908926,1765986655087,-151.0,0.0003,7]
[398908927,1765986655098,-525.697294,0.0003,7]
[398908928,1765986655108,-218.2,0.0003,7]
[398908929,1765986655120,-151.0,0.0003,7]
[398908930,1765986655129,-151.0,0.0003,7]
[398908931,1765986655139,-206.514843,0.0003,7]
[398908932,1765986655154,-151.0,0.0003,7]
[398908933,1765986655164,-151.0,0.0003,7]
[398908934,1765986655174,-151.0,0.0003,7]
[398908935,1765986655184,-206.514843,0.0003,7]
[398908936,1765986655194,-151.0,0.0003,7]
[398908937,1765986655204,-206.514843,0.0003,7]
[398908938,1765986655214,-151.0,0.0003,7]
[398908939,1765986655224,-206.514843,0.0003,7]
[398908940,1765986655234,-155.698271,0.0003,7]
[398908941,1765986655244,-217.538214,0.0003,7]
[398908942,1765986655254,-151.0,0.0003,7]
[398908943,1765986655264,-151.0,0.0003,7]
[398908944,1765986655273,-151.0,0.0003,7]
[398908945,1765986655284,-151.0,0.0003,7]
[398908946,1765986655295,-155.52711,0.0003,7]
[398908947,1765986655306,-163.774014,0.0003,7]
[398908948,1765986655317,-778.117682,0.0003,7]
[398908949,1765986655327,-163.774014,0.0003,7]
[398908950,1765986655337,-778.117682,0.0003,7]
[398908951,1765986655347,-163.774014,0.0003,7]
[398908952,1765986655357,-778.117682,0.0003,7]
[398908953,1765986655367,-163.774014,0.0003,7]
[398908954,1765986655376,-778.117682,0.0003,7]
[398908955,1765986655386,-300.0,0.00030129,10]
[398908956,1765986655395,-1065.96001167,0.0003013,2]
[398908957,1765986655412,-13754.03205683,0.0003013,2]
[398908958,1765986655422,-629.51045592,0.0003013,2]
[398908959,1765986655431,-5023.1886488,0.0003013,2]
[398908960,1765986655441,-200.26296249,0.0003013,2]
[398908961,1765986655450,-1215.7101237,0.0003013,2]
[398908962,1765986655460,-7676.92390099,0.0003013,2]
[398908963,1765986655469,-1497.40564233,0.0003013,5]
[398908964,1765986655479,-151.0,0.0003013,7]
[398908965,1765986655610,-428.353702,0.0003013,7]
[398908966,1765986655621,-428.353702,0.0003013,7]
[398908967,1765986655631,-428.353702,0.0003013,7]
[398908968,1765986655643,-428.353702,0.0003013,7]
[398908969,1765986655657,-363.975936,0.0003013,7]
[398908970,1765986655667,-363.975936,0.0003013,7]
[398908971,1765986655679,-151.0,0.0003013,7]
[398908972,1765986655688,-363.975936,0.0003013,7]
[398908973,1765986655698,-175.179963,0.0003013,7]
[398908974,1765986655707,-151.0,0.0003013,7]
[398908975,1765986655719,-363.975936,0.0003013,7]
[398908976,1765986655728,-175.179963,0.0003013,7]
[398908977,1765986655737,-151.0,0.0003013,7]
[398908978,1765986655747,-175.179963,0.0003013,7]
[398908979,1765986655756,-205.310643,0.0003013,7]
[398908980,1765986655766,-151.0,0.0003013,7]
[398908981,1765986655775,-175.179963,0.0003013,7]
[398908982,1765986655784,-151.0,0.0003013,7]
[398908983,1765986655795,-151.0,0.0003013,7]
[398908984,1765986655806,-1553.97,0.00030137,2]
[398908985,1765986655815,-151.0,0.00030137,31]
[398908986,1765986655824,-151.0,0.00030137,31]
[398908987,1765986655834,-303.61184837,0.00030137,5]
[398908988,1765986655844,-677.2,0.00030137,21]
[398908989,1765986655854,-661.6,0.00030137,25]
[398908990,1765986655863,-622.4,0.00030137,26]
[398908991,1765986655873,-773.2,0.00030137,16]
[398908992,1765986655882,-734.8,0.00030137,16]
[398908993,1765986655890,-561.6,0.00030137,27]
[398908994,1765986655903,-656.4,0.00030137,22]
[398908995,1765986655913,-735.2,0.00030137,27]
[398908996,1765986655922,-789.6,0.00030137,19]
[398908997,1765986655931,-549.6,0.00030137,20]
[398908998,1765986655940,-494.0,0.00030137,21]
[398908999,1765986655950,-690.8,0.00030137,23]
[398909000,1765986655959,-541.6,0.00030137,27]
[398909001,1765986655968,-529.2,0.00030137,24]
[398909002,1765986655977,-735.2,0.00030137,24]
[398909003,1765986655986,-540.0,0.00030137,16]
[398909004,1765986655996,-563.6,0.00030137,27]
[398909005,1765986656004,-565.6,0.00030137,16]
[398909006,1765986656013,-428.4,0.00030137,29]
[398909007,1765986656022,-778.8,0.00030137,18]
[398909008,1765986656033,-420.4,0.00030137,18]
[398909009,1765986656042,-528.0,0.00030137,30]
[398909010,1765986656051,-480.0,0.00030137,31]
[398909011,1765986656061,-599.6,0.00030137,16]
[398909012,1765986656070,-667.6,0.00030137,20]
[398909013,1765986656080,-500.0,0.00030174,14]
[398909014,1765986656089,-284.4,0.000302,30]
[398909015,1765986656100,-1073.87361285,0.00030226,3]
[398909016,1765986656109,-467.2959376,0.00030226,3]
[398909017,1765986656119,-730.28,0.00030366,2]
[398909018,1765986656128,-1000.0,0.00030448,14]
[398909019,1765986656138,-1300.0,0.00030448,14]
[398909020,1765986656147,-380.79201415,0.00030568,30]
[398909021,1765986656163,-50460.61,0.000307,7]
[398909022,1765986656172,-1308.32502884,0.00030719,4]
[398909023,1765986656182,-654.03745797,0.0003074,2]
[398909024,1765986656190,-2000.0,0.000308,2]
[398909025,1765986656200,-2593.42161258,0.0003084,2]
[398909026,1765986656209,-416.03518578,0.00030919,2]
[398909027,1765986656218,-78441.61712488,0.0003095,2]
[398909028,1765986656227,-340.0272823,0.00031,5]
[398909029,1765986656236,-600.0,0.00031,2]
[398909030,1765986656247,-499.999999,0.0003121,2]
[398909031,1765986656258,-19562.59504426,0.0003143,4]
[398909032,1765986656267,-500.0,0.00031442,2]
[398909033,1765986656276,-196.03138091,0.000315,2]
[398909034,1765986656285,-150.0,0.000315,2]
[398909035,1765986656294,-169.09,0.00031507,120]
[398909036,1765986656303,-395.31347641,0.00031567,2]
[398909037,1765986656312,-284.4,0.000316,30]
[398909038,1765986656321,-500.0,0.00031818,14]
[398909039,1765986656331,-1903.43460964,0.0003185,2]
[398909040,1765986656342,-284.30273782,0.000319,2]
[398909041,1765986656351,-150.0,0.00032,2]
[398909042,1765986656360,-150.0,0.00032,120]
[398909043,1765986656369,-750.0,0.00032,10]
[398909044,1765986656378,-50460.61,0.00032,7]
[398909045,1765986656388,-1000.0,0.00032092,14]
[398909046,1765986656397,-1300.0,0.00032092,14]
[398909047,1765986656412,-431.42848765,0.00032288,2]
[398909048,1765986656421,-887.70007871,0.000323,2]
[398909049,1765986656430,-1059.01672075,0.00032733,7]
[398909050,1765986656440,-654.03745797,0.0003278,2]
[398909051,1765986656449,-4793.11172839,0.000328,2]
[398909052,1765986656458,-730.28,0.00032866,2]
[398909053,1765986656467,-1607.0,0.00032867,2]
[398909054,1765986656478,-612.0,0.00032867,2]
[398909055,1765986656488,-3453.0,0.00032867,2]
[398909056,1765986656498,-1325.0,0.00032867,2]
[398909057,1765986656507,-1261.0,0.00032867,2]
[398909058,1765986656517,-564.0,0.00032867,2]
[398909059,1765986656528,-911.0,0.00032867,2]
[398909060,1765986656537,-1197.0,0.00032867,2]
[398909061,1765986656547,-2427.0,0.00032867,2]
[398909062,1765986656556,-4799.0,0.00032867,2]
[398909063,1765986656566,-150.0,0.00032868,4]
[398909064,1765986656575,-150.0,0.00032868,4]
[398909065,1765986656584,-150.0,0.00032868,4]
[398909066,1765986656593,-150.0,0.00032868,4]
[398909067,1765986656604,-150.0,0.00032868,4]
[398909068,1765986656613,-150.0,0.00032868,4]
[398909069,1765986656622,-150.0,0.00032868,4]
[398909070,1765986656632,-150.0,0.00032868,4]
[398909071,1765986656641,-150.0,0.00032868,4]
[398909072,1765986656655,-150.0,0.00032868,4]
[398909073,1765986656665,-1000.0,0.00032877,10]
[398909074,1765986656675,-1553.97,0.00032877,2]
[398909075,1765986656684,-342.27,0.00032877,2]
[398909076,1765986656694,-500.0,0.00032877,2]
[398909077,1765986656703,-416.00817988,0.00032877,2]
[398909078,1765986656712,-150.0,0.00032877,2]
[398909079,1765986656722,-153.37315225,0.00032877,2]
[398909080,1765986656734,-500.0,0.00032877,2]
[398909081,1765986656744,-500.0,0.00032877,7]
[398909082,1765986656753,-284.4,0.000329,30]
[398909083,1765986656763,-1902.25752961,0.00033,2]
[398909084,1765986656772,-1901.9131953,0.00033,2]
[398909085,1765986656781,-51205.78359392,0.00033,2]
[398909086,1765986656791,-152.45885938,0.00033,2]
[398909087,1765986656799,-3000.0,0.00033,20]
[398909088,1765986656810,-3000.0,0.00033,20]
[398909089,1765986656819,-1000.0,0.00033,11]
[398909090,1765986656829,-2396.58,0.00033,2]
[398909091,1765986656838,-1009.56,0.00033,14]
[398909092,1765986656848,-2567.82,0.00033,14]
[398909093,1765986656858,-552.06365,0.00033,14]
[398909094,1765986656867,-268.466878,0.00033,31]
[398909095,1765986656877,-151.0,0.00033,31]
[398909096,1765986656887,-194.590623,0.00033,31]
[398909097,1765986656897,-151.0,0.00033,10]
[398909098,1765986656911,-151.0,0.00033,31]
[398909099,1765986656920,-151.0,0.00033,31]
[398909100,1765986656931,-151.0,0.00033,31]
[398909101,1765986656942,-151.0,0.00033,31]
[398909102,1765986656955,-151.0,0.00033,31]
[398909103,1765986656966,-151.0,0.00033,31]
[398909104,1765986656976,-152.778924,0.00033,14]
[398909105,1765986656985,-151.0,0.00033,31]
[398909106,1765986656994,-151.0,0.00033,31]
[398909107,1765986657004,-151.0,0.00033,31]
[398909108,1765986657014,-151.0,0.00033,31]
[398909109,1765986657024,-151.0,0.00033,31]
[398909110,1765986657033,-269.090686,0.00033,31]
[398909111,1765986657043,-269.090686,0.00033,31]
[398909112,1765986657054,-269.090686,0.00033,31]
[398909113,1765986657065,-269.090686,0.00033,31]
[398909114,1765986657082,-221.416471,0.00033,31]
[398909115,1765986657104,-221.416471,0.00033,31]
[398909116,1765986657126,-221.416471,0.00033,31]
[398909117,1765986657146,-221.416471,0.00033,31]
[398909118,1765986657169,-650.0,0.00033,2]
[398909119,1765986657188,-500.0,0.00033014,2]
[398909120,1765986657210,-500.0,0.00033151,2]
[398909121,1765986657219,-612.31,0.00033165,2]
[398909122,1765986657228,-500.0,0.00033288,2]
[398909123,1765986657238,-166.0,0.000333,66]
[398909124,1765986657247,-150.0,0.0003339,7]
[398909125,1765986657257,-500.0,0.00033425,2]
[398909126,1765986657266,-500.0,0.00033462,14]
[398909127,1765986657276,-1202.85026388,0.000335,2]
[398909128,1765986657286,-500.0,0.00033562,2]
[398909129,1765986657297,-447.3913417,0.00033657,2]
[398909130,1765986657307,-621.22439531,0.00033699,2]
[398909131,1765986657317,-1000.0,0.00033736,14]
[398909132,1765986657326,-1300.0,0.00033736,14]
[398909133,1765986657336,-284.4,0.000338,30]
[398909134,1765986657346,-150.0,0.00033912,7]
[398909135,1765986657355,-324.66692984,0.00034,2]
[398909136,1765986657365,-200.0,0.00034,120]
[398909137,1765986657374,-28935.0,0.00034068,2]
[398909138,1765986657384,-150.0,0.00034086,7]
[398909139,1765986657393,-1217.66,0.00034129,2]
[398909140,1765986657404,-1217.86,0.00034129,2]
[398909141,1765986657418,-1217.66,0.00034129,2]
[398909142,1765986657427,-1217.86,0.00034129,2]
[398909143,1765986657435,-503.0,0.00034192,2]
[398909144,1765986657444,-199.0,0.00034246,30]
[398909145,1765986657453,-302.70484887,0.00034267,2]
[398909146,1765986657462,-1730.37,0.00034327,30]
[398909147,1765986657472,-150.0,0.00034434,7]
[398909148,1765986657481,-1718.61576158,0.0003449,2]
[398909149,1765986657490,-2000.0,0.000345,2]
[398909150,1765986657499,-150.0,0.00034695,7]
[398909151,1765986657508,-150.0,0.00034695,7]
[398909152,1765986657518,-150.0,0.00034695,7]
[398909153,1765986657528,-654.03745797,0.0003482,2]
[398909154,1765986657537,-284.0,0.00034924,30]
[398909155,1765986657546,-151.0,0.00034928,14]
[398909156,1765986657555,-199.0,0.00034931,31]
[398909157,1765986657565,-150.0,0.00034955,7]
[398909158,1765986657574,-404.29894686,0.00035,2]
[398909159,1765986657583,-3032.0,0.00035,30]
[398909160,1765986657592,-1005.0,0.00035,14]
[398909161,1765986657601,-1281.0,0.00035,14]
[398909162,1765986657611,-1347.14177559,0.00035,10]
[398909163,1765986657623,-250.0,0.00035,30]
[398909164,1765986657635,-1000.0,0.00035,120]